bitfinex-derivatives/quotes_BNBF0:USTF0_20260221
["timestamp","ask_amount","ask_price","bid_price","bid_amount"]
[1771711012155,1.19538205,627.05,626.49,2.86362992]
[1771711018257,1.19538205,627.04,626.49,2.86362992]
[1771711020155,1.19538205,627.04,626.5,1.19262992]
[1771711025154,1.19538205,627.03,626.51,1.19262992]
[1771711037970,1.19538205,627.2,626.67,1.19262992]
[1771711038265,1.19538205,627.19,626.67,1.19262992]
[1771711038470,1.19538205,627.21,626.52,1.59429317]
[1771711039469,1.19538205,627.22,626.62,1.19042462]
[1771711040474,1.19538205,627.18,626.56,1.19042462]
[1771711041373,1.19538205,627.19,626.56,1.19042462]
[1771711042475,1.58354837,627.35,626.61,1.19042462]
[1771711043471,1.58354837,627.36,626.61,1.19042462]
[1771711044274,0.27755402,627.35,626.6,1.19042462]
[1771711049075,0.27755402,627.35,626.61,1.22]
[1771711053674,1.58354837,627.33,626.61,1.22]
[1771711064381,1.58354837,627.32,626.61,1.22]
[1771711072591,1.19477985,627.17,626.61,1.22]
[1771711077395,1.19477985,627.16,626.61,1.22]
[1771711081296,1.58354837,627.27,626.61,1.22]
[1771711081297,1.19477985,627.15,626.61,1.22]
[1771711083297,1.19477985,627.14,626.61,1.22]
[1771711088899,1.19477985,627.14,626.57,1.18980553]
[1771711089299,1.19477985,627.13,626.57,1.18980553]
[1771711092303,1.19477985,627.13,626.58,1.18980553]
[1771711092798,1.19477985,627.13,626.59,1.739]
[1771711097307,1.19477985,627.12,626.59,1.739]
[1771711098304,1.19477985,627.12,626.59,2.92880553]
[1771711102409,1.19477985,627.1,626.59,1.739]
[1771711104811,1.19477985,627.1,626.58,1.18980553]
[1771711107513,1.19477985,627.1,626.59,1.289]
[1771711149651,1.19477985,627.1,626.58,1.18980553]
[1771711153857,1.19477985,627.1,626.59,1.802]
[1771711154957,1.19477985,627.11,626.59,2.99180553]
[1771711157857,1.19477985,627.12,626.6,1.18980553]
[1771711158253,1.19477985,627.12,626.59,2.99180553]
[1771711159254,1.19477985,627.15,626.62,1.18980553]
[1771711160259,1.19477985,627.15,626.61,1.18980553]
[1771711160758,1.19477985,627.16,626.63,1.18980553]
[1771711161357,1.19477985,627.17,626.62,1.18980553]
[1771711163464,1.19477985,627.17,626.59,1.802]
[1771711163465,1.19477985,627.19,626.63,1.18980553]
[1771711164763,1.19477985,627.22,626.65,1.18980553]
[1771711164965,1.19477985,627.23,626.67,1.18980553]
[1771711165263,1.19477985,627.24,626.66,1.18980553]
[1771711166265,1.19477985,627.25,626.66,1.18980553]
[1771711167263,1.19477985,627.25,626.65,1.18980553]
[1771711169164,1.19477985,627.26,626.64,1.18980553]
[1771711169363,1.19477985,627.27,626.66,1.18980553]
[1771711170167,1.19477985,627.28,626.66,1.18980553]
[1771711170966,1.19477985,627.3,626.68,1.18980553]
[1771711171364,1.19477985,627.3,626.59,1.802]
[1771711171365,1.19477985,627.3,626.67,1.18980553]
[1771711172266,1.19477985,627.31,626.67,1.18980553]
[1771711173963,1.19477985,627.32,626.67,1.18980553]
[1771711175366,1.19477985,627.33,626.67,1.18980553]
[1771711176367,1.19477985,627.33,626.66,1.18980553]
[1771711177872,1.19477985,627.34,626.67,1.18980553]
[1771711179374,1.19477985,627.35,626.66,1.18980553]
[1771711189187,1.19477985,627.37,626.67,1.18980553]
[1771711192588,1.19477985,627.37,626.68,1.18980553]
[1771711193692,1.19477985,627.38,626.68,1.18980553]
[1771711194191,1.19477985,627.37,626.69,1.18980553]
[1771711195690,1.19477985,627.38,626.69,1.18980553]
[1771711196292,1.19477985,627.38,626.59,1.802]
[1771711196293,1.19477985,627.38,626.7,1.18980553]
[1771711198195,1.19477985,627.37,626.7,1.18980553]
[1771711200293,1.19477985,627.37,626.71,1.18980553]
[1771711202093,1.19477985,627.4,626.74,1.18980553]
[1771711202299,1.19477985,627.49,626.84,1.18980553]
[1771711202499,1.19477985,627.5,626.85,1.18980553]
[1771711203095,1.19477985,627.51,626.84,1.18980553]
[1771711203297,1.19477985,627.58,626.92,1.18980553]
[1771711203496,0.27747545,627.62,626.69,2.38732477]
[1771711203695,0.27747545,627.62,626.59,1.802]
[1771711205403,1.1924091,627.6,626.89,1.1871609]
[1771711206103,1.1924091,627.61,626.88,1.1871609]
[1771711207100,1.46988455,627.62,626.88,1.1871609]
[1771711207299,1.1924091,627.61,626.88,1.1871609]
[1771711208104,1.46988455,627.62,626.87,1.1871609]
[1771711209699,0.27747545,627.62,626.88,1.1871609]
[1771711210204,0.27747545,627.62,626.87,1.1871609]
[1771711212106,0.27747545,627.62,626.86,1.1871609]
[1771711216104,0.27747545,627.62,626.85,1.1871609]
[1771711217010,0.27747545,627.62,626.86,1.4]
[1771711217509,1.1924091,627.61,626.86,1.4]
[1771711217805,0.27747545,627.62,626.86,1.4]
[1771711228221,1.46988455,627.62,626.86,1.4]
[1771711232024,1.46988455,627.62,626.82,1.1871609]
[1771711232219,1.1924091,627.61,626.82,1.1871609]
[1771711233121,1.1924091,627.61,626.83,1.1871609]
[1771711235223,1.1924091,627.61,626.84,1.1871609]
[1771711235424,1.1924091,627.6,626.84,1.1871609]
[1771711236329,1.1924091,627.6,626.85,1.43]
[1771711237326,1.1924091,627.59,626.85,2.6171609]
[1771711239231,1.1924091,627.58,626.86,1.1871609]
[1771711240227,1.1924091,627.57,626.86,1.1871609]
[1771711241230,1.1924091,627.57,626.87,1.1871609]
[1771711242230,1.1924091,627.56,626.88,1.1871609]
[1771711243237,1.1924091,627.55,626.89,1.1871609]
[1771711244332,1.1924091,627.54,626.9,1.1871609]
[1771711246232,1.1924091,627.52,626.92,1.1871609]
[1771711247135,1.1924091,627.5,626.94,1.1871609]
[1771711248134,1.1924091,627.49,626.95,1.1871609]
[1771711252640,1.1924091,627.5,626.96,1.1871609]
[1771711255038,1.1924091,627.49,626.96,1.1871609]
[1771711272249,1.1924091,627.5,626.98,1.1871609]
[1771711273252,1.1924091,627.5,626.97,1.1871609]
[1771711277160,1.1924091,627.51,626.98,1.1871609]
[1771711279162,1.1924091,627.5,626.96,1.1871609]
[1771711279559,1.1924091,627.51,626.98,1.1871609]
[1771711279757,1.1924091,627.5,626.96,1.1871609]
[1771711279957,1.1924091,627.49,626.96,1.1871609]
[1771711280261,1.1924091,627.48,626.94,1.1871609]
[1771711280457,1.1924091,627.46,626.92,1.1871609]
[1771711280666,1.1924091,627.34,626.85,1.43]
[1771711281459,1.1924091,627.41,626.85,1.43]
[1771711281660,1.1924091,627.48,626.89,1.1871609]
[1771711281862,1.5898788,627.59,626.85,1.43]
[1771711281863,1.1924091,627.51,626.93,1.1871609]
[1771711282163,1.1924091,627.59,627.0,1.1871609]
[1771711282463,1.1924091,627.61,627.02,1.1871609]
[1771711282859,1.1924091,627.6,627.0,1.1871609]
[1771711284463,1.1924091,627.76,627.16,1.1871609]
[1771711285164,1.1924091,627.75,627.14,1.1871609]
[1771711285363,1.1924091,627.76,627.12,1.1871609]
[1771711285566,1.1924091,627.73,627.09,1.1871609]
[1771711285763,1.1924091,627.72,627.08,1.1871609]
[1771711285968,1.1924091,627.69,627.05,1.1871609]
[1771711286168,1.1924091,627.7,627.04,1.1871609]
[1771711286865,0.27736266,627.9,627.01,1.1871609]
[1771711286866,1.1924091,627.67,627.01,1.1871609]
[1771711287570,1.1924091,627.63,626.96,1.1871609]
[1771711287769,1.1924091,627.57,626.91,1.1871609]
[1771711287970,1.1924091,627.52,626.86,1.1871609]
[1771711288469,1.1924091,627.51,626.85,2.6171609]
[1771711290071,1.1924091,627.53,626.87,1.1871609]
[1771711291270,1.1924091,627.54,626.88,1.1871609]
[1771711292373,1.1924091,627.56,626.9,1.1871609]
[1771711294873,1.5898788,627.67,626.78,1.5828812]
[1771711295071,1.19332597,627.56,626.9,1.18811846]
[1771711298473,1.19332597,627.56,626.91,1.361]
[1771711320683,1.19332597,627.55,626.91,1.361]
[1771711325386,1.19344796,627.55,626.91,1.361]
[1771711326185,1.19344796,627.54,626.91,1.361]
[1771711328389,1.19344796,627.54,626.91,2.54944583]
[1771711328589,1.19344796,627.54,626.91,1.18844583]
[1771711330387,1.19344796,627.52,626.92,1.18844583]
[1771711331188,1.19344796,627.51,626.94,1.18844583]
[1771711332189,1.19344796,627.5,626.95,2.55744583]
[1771711334194,1.19344796,627.49,626.95,2.55744583]
[1771711335191,1.19344796,627.49,626.96,1.18844583]
[1771711340897,0.27736266,627.9,626.95,1.369]
[1771711340898,1.19344796,627.46,626.95,1.369]
[1771711342899,1.19344796,627.45,626.95,1.369]
[1771711343094,1.19344796,627.46,626.95,1.369]
[1771711344798,0.27736266,627.9,626.95,1.369]
[1771711344799,1.19344796,627.47,626.95,1.369]
[1771711350108,1.19344796,627.51,626.95,2.55744583]
[1771711351104,1.5898788,627.62,626.95,2.55744583]
[1771711351105,1.19344796,627.52,626.96,1.18844583]
[1771711355415,1.19344796,627.53,626.97,1.18844583]
[1771711356612,1.19344796,627.57,627.0,1.18844583]
[1771711357313,1.19344796,627.59,627.01,1.18844583]
[1771711359515,1.19344796,627.62,627.03,1.18844583]
[1771711360115,1.19344796,627.62,627.02,1.18844583]
[1771711361117,1.19344796,627.63,627.02,1.18844583]
[1771711362216,1.19344796,627.63,626.95,1.369]
[1771711362217,1.19344796,627.63,627.01,1.18844583]
[1771711363222,1.19344796,627.64,627.01,1.18844583]
[1771711363622,1.19344796,627.65,627.03,1.18844583]
[1771711364218,1.19344796,627.66,627.02,1.18844583]
[1771711365218,1.19344796,627.67,627.03,1.18844583]
[1771711366222,1.19344796,627.68,627.03,1.18844583]
[1771711366423,1.19344796,627.69,627.05,1.18844583]
[1771711366619,1.19338824,627.69,627.05,1.18858348]
[1771711366920,1.19338824,627.7,627.06,1.18858348]
[1771711367120,1.19338824,627.71,627.05,1.18858348]
[1771711368822,1.19338824,627.76,627.09,1.18858348]
[1771711369222,0.27736266,627.9,627.08,1.18858348]
[1771711369223,1.19338824,627.77,627.08,1.18858348]
[1771711371120,1.19338824,627.78,627.07,1.18858348]
[1771711372224,1.19338824,627.78,627.06,1.18858348]
[1771711374122,1.19338824,627.78,626.95,1.369]
[1771711374123,1.19338824,627.8,627.07,1.18858348]
[1771711374826,0.27736266,627.9,627.07,1.18616713]
[1771711375127,1.19129577,627.8,627.07,1.18616713]
[1771711375426,1.19129577,627.8,627.06,1.18616713]
[1771711376129,1.19129577,627.81,627.06,1.18616713]
[1771711377225,1.19129577,627.81,627.05,1.18616713]
[1771711381327,1.19129577,627.82,627.05,1.18616713]
[1771711382931,1.19129577,627.82,627.06,1.854]
[1771711388135,1.19129577,627.81,627.06,1.854]
[1771711391235,1.19129577,627.81,627.06,3.04016713]
[1771711391936,1.19129577,627.77,627.06,1.854]
[1771711392136,1.19129577,627.75,627.06,1.854]
[1771711393233,1.19129577,627.74,627.06,1.854]
[1771711395140,1.19129577,627.73,627.06,1.854]
[1771711397143,1.19129577,627.72,627.06,1.854]
[1771711398341,1.19129577,627.71,627.06,1.854]
[1771711400146,1.19129577,627.7,627.06,1.854]
[1771711401147,1.19129577,627.69,627.06,1.854]
[1771711403147,1.19129577,627.69,627.06,3.04016713]
[1771711405249,1.19129577,627.68,627.06,3.04016713]
[1771711407153,1.19129577,627.68,627.07,1.18616713]
[1771711409154,1.19129577,627.68,627.06,1.854]
[1771711409155,1.19129577,627.71,627.1,1.18616713]
[1771711410154,1.19129577,627.7,627.1,1.18616713]
[1771711411250,1.19129577,627.7,627.11,1.18616713]
[1771711414555,1.19129577,627.72,627.13,1.18616713]
[1771711424965,1.19129577,627.7,627.11,1.18616713]
[1771711425264,1.19129577,627.67,627.08,1.18616713]
[1771711426062,1.19129577,627.67,627.09,1.265]
[1771711431168,1.19129577,627.65,627.09,1.265]
[1771711432770,1.19129577,627.62,627.09,1.265]
[1771711438378,1.19129577,627.63,627.09,1.265]
[1771711458783,1.19129577,627.64,627.09,1.265]
[1771711460085,1.19129577,627.67,627.09,1.265]
[1771711460589,1.19129577,627.68,627.09,1.265]
[1771711462292,1.19129577,627.67,627.09,1.265]
[1771711462891,1.19129577,627.68,627.09,2.45116713]
[1771711468494,1.19129577,627.67,627.1,1.18616713]
[1771711473403,1.19129577,627.68,627.1,1.18616713]
[1771711476305,1.19129577,627.68,627.09,1.18616713]
[1771711477707,1.19129577,627.68,627.1,1.153]
[1771711486909,1.19129577,627.67,627.1,1.153]
[1771711489213,1.19129577,627.66,627.1,1.153]
[1771711491716,1.19129577,627.66,627.09,1.18616713]
[1771711492915,1.19129577,627.66,627.08,1.18616713]
[1771711493416,1.19129577,627.66,627.09,1.18616713]
[1771711495814,1.19129577,627.66,627.1,1.391]
[1771711497313,1.19129577,627.65,627.1,1.391]
[1771711501220,1.19129577,627.65,627.1,2.57716713]
[1771711503121,1.5898788,627.76,627.1,2.57716713]
[1771711503122,1.19129577,627.64,627.1,2.57716713]
[1771711522838,1.19129577,627.65,627.11,1.18616713]
[1771711523135,1.19129577,627.65,627.12,1.18616713]
[1771711523435,1.19129577,627.66,627.13,1.18616713]
[1771711523640,1.19129577,627.79,627.25,1.18616713]
[1771711524336,1.19129577,627.81,627.23,1.18616713]
[1771711524640,0.27729415,627.99,627.22,1.18616713]
[1771711524641,1.19129577,627.8,627.22,1.18616713]
[1771711525441,1.19129577,627.81,627.21,1.18616713]
[1771711526338,1.19129577,627.82,627.21,1.18616713]
[1771711527340,1.19129577,627.82,627.2,1.18616713]
[1771711528240,1.19129577,627.83,627.2,1.18616713]
[1771711528441,1.19129577,627.74,627.11,1.18616713]
[1771711531943,1.19129577,627.72,627.1,1.391]
[1771711533148,1.19129577,627.69,627.1,1.391]
[1771711539254,1.19129577,627.7,627.1,1.391]
[1771711539553,1.19129577,627.69,627.1,1.391]
[1771711540254,1.19129577,627.7,627.1,1.391]
[1771711540554,1.19129577,627.69,627.1,1.391]
[1771711541154,1.19129577,627.7,627.1,1.391]
[1771711541350,1.19129577,627.69,627.1,1.391]
[1771711542151,1.19129577,627.7,627.1,1.391]
[1771711542453,1.19129577,627.69,627.1,1.391]
[1771711543153,1.19129577,627.7,627.1,1.391]
[1771711543351,1.19129577,627.69,627.1,1.391]
[1771711544255,1.5898788,627.81,627.1,1.391]
[1771711544256,1.19129577,627.7,627.1,1.391]
[1771711544555,1.19129577,627.69,627.1,1.391]
[1771711548656,0.27729415,627.99,627.1,1.391]
[1771711548657,1.19129577,627.67,627.1,1.391]
[1771711550863,1.19129577,627.67,627.04,1.18616713]
[1771711552965,1.19129577,627.7,627.06,1.18616713]
[1771711554066,1.19129577,627.7,627.07,1.624]
[1771711566481,1.19129577,627.63,627.07,1.624]
[1771711567276,1.19129577,627.64,627.07,1.624]
[1771711570280,1.19129577,627.63,627.07,1.624]
[1771711571184,1.19129577,627.64,627.07,1.624]
[1771711571381,1.19129577,627.63,627.07,1.624]
[1771711573287,1.19129577,627.62,627.07,1.624]
[1771711582890,1.19129577,627.59,627.07,1.624]
[1771711587993,1.19129577,627.59,626.96,1.18616713]
[1771711589294,1.5898788,627.7,626.85,1.5828812]
[1771711589295,1.19129577,627.58,626.97,1.18616713]
[1771711599206,1.19129577,627.58,626.98,1.18616713]
[1771711600206,1.19129577,627.57,626.98,1.18616713]
[1771711606010,1.19129577,627.56,626.99,1.18616713]
[1771711609208,1.19129577,627.56,627.0,1.18616713]
[1771711610312,1.19129577,627.55,627.0,1.18616713]
[1771711611109,1.19129577,627.54,627.0,1.18616713]
[1771711611313,1.19129577,627.54,627.01,1.18616713]
[1771711634333,1.19634954,627.54,627.01,1.19164129]
[1771711642944,1.19634954,627.54,627.02,1.19164129]
[1771711670166,1.19634954,627.5,626.95,1.19164129]
[1771711671268,1.19634954,627.48,626.94,1.137]
[1771711672072,1.5898788,627.6,626.94,1.137]
[1771711672073,1.19634954,627.49,626.94,1.137]
[1771711672970,1.19634954,627.48,626.94,1.137]
[1771711677175,1.19634954,627.49,626.94,1.137]
[1771711680381,1.19634954,627.48,626.94,1.137]
[1771711687381,1.19634954,627.49,626.94,1.137]
[1771711690288,1.19634954,627.48,626.94,1.137]
[1771711690588,1.19634954,627.46,626.94,1.137]
[1771711692290,1.19634954,627.47,626.94,1.137]
[1771711703607,1.19634954,627.42,626.94,1.137]
[1771711703802,1.19634954,627.38,626.94,1.137]
[1771711704305,1.19634954,627.39,626.94,1.137]
[1771711705003,1.19634954,627.39,626.77,1.19164129]
[1771711705203,1.19634954,627.38,626.77,1.19164129]
[1771711705407,1.19634954,627.39,626.77,1.19164129]
[1771711706309,1.19634954,627.39,626.76,1.46903933]
[1771711707907,1.19634954,627.39,626.77,1.263]
[1771711708311,1.19634954,627.4,626.77,1.263]
[1771711709207,1.19634954,627.39,626.77,1.263]
[1771711709406,1.19634954,627.4,626.77,1.263]
[1771711710309,1.19634954,627.39,626.77,1.263]
[1771711710512,1.19634954,627.4,626.77,1.263]
[1771711714212,1.19634954,627.39,626.77,1.263]
[1771711714510,1.19634954,627.4,626.77,1.263]
[1771711727923,1.19634954,627.4,626.76,1.46903933]
[1771711730525,1.19634954,627.39,626.76,1.46903933]
[1771711732122,1.19634954,627.4,626.77,1.493]
[1771711732325,1.19634954,627.39,626.77,1.493]
[1771711733026,1.19634954,627.4,626.77,2.68464129]
[1771711733321,1.19634954,627.39,626.77,2.68464129]
[1771711738330,1.19634954,627.39,626.78,1.19164129]
[1771711739331,1.19634954,627.38,626.78,1.19164129]
[1771711743332,1.19634954,627.38,626.79,1.19164129]
[1771711744435,1.5898788,627.49,626.79,1.19164129]
[1771711744436,1.19634954,627.37,626.79,1.19164129]
[1771711746347,1.19634954,627.36,626.8,1.19164129]
[1771711748251,1.19634954,627.34,626.82,1.19164129]
[1771711753554,1.19634954,627.34,626.83,1.741]
[1771711763156,1.19634954,627.35,626.83,2.93264129]
[1771711765559,1.19634954,627.35,626.83,1.19164129]
[1771711769366,1.19634954,627.35,626.84,1.213]
[1771711777470,1.19634954,627.38,626.85,1.19164129]
[1771711780369,1.19634954,627.38,626.84,2.40464129]
[1771711782566,1.19634954,627.39,626.84,2.40464129]
[1771711786468,1.19634954,627.42,626.87,1.19164129]
[1771711788375,1.19634954,627.42,626.86,1.19164129]
[1771711789375,1.19634954,627.43,626.86,1.19164129]
[1771711793377,1.19634954,627.44,626.86,1.19164129]
[1771711817390,1.19634954,627.43,626.86,1.19164129]
[1771711819396,1.19634954,627.43,626.87,1.19164129]
[1771711822501,1.19634954,627.42,626.87,1.19164129]
[1771711827402,1.19634954,627.42,626.88,1.19164129]
[1771711830405,1.19634954,627.41,626.88,1.19164129]
[1771711831512,1.19634954,627.41,626.89,1.19164129]
[1771711836410,1.5898788,627.52,626.83,1.52]
[1771711836615,1.19657983,627.41,626.89,1.19281428]
[1771711871147,1.19657983,627.41,626.9,1.264]
[1771711931099,1.19657983,627.41,626.89,1.19281428]
[1771711980318,1.19657983,627.41,626.78,1.5828812]
[1771711980319,1.19657983,627.35,626.83,1.19281428]
[1771711980524,1.19657983,627.39,626.87,1.19281428]
[1771711981026,1.19657983,627.39,626.76,1.82439804]
[1771711981027,1.19657983,627.35,626.81,1.19281428]
[1771711981422,1.19657983,627.35,626.76,1.82439804]
[1771711981423,1.19657983,627.34,626.8,1.19281428]
[1771711981725,1.19657983,627.34,626.76,1.547]
[1771711981726,1.19657983,627.2,626.76,1.547]
[1771711982324,1.19657983,627.23,626.76,1.547]
[1771711982825,1.19657983,627.22,626.76,1.547]
[1771711983023,1.19657983,627.2,626.76,1.547]
[1771711983227,1.19657983,627.22,626.76,1.547]
[1771711984325,1.19657983,627.23,626.76,1.547]
[1771711984528,0.27753299,627.35,626.76,1.547]
[1771711984529,1.19657983,627.21,626.76,1.547]
[1771711985229,1.19657983,627.22,626.76,1.547]
[1771711986229,1.19657983,627.23,626.76,1.547]
[1771711986624,1.86741179,627.35,626.76,1.547]
[1771711986625,1.19657983,627.2,626.76,1.547]
[1771711986826,1.19657983,627.17,626.76,1.547]
[1771711987229,1.19657983,627.19,626.76,1.547]
[1771711987425,1.19657983,627.16,626.76,1.547]
[1771711988225,1.19657983,627.17,626.76,1.547]
[1771711988527,1.19657983,627.15,626.76,1.547]
[1771711988730,1.19657983,627.11,626.76,1.547]
[1771711989132,1.19657983,627.08,626.76,1.547]
[1771711989332,1.19657983,627.1,626.76,1.547]
[1771711990230,1.19657983,627.11,626.76,1.547]
[1771711991230,1.19657983,627.13,626.76,1.547]
[1771711992133,1.19657983,627.14,626.76,1.547]
[1771711992333,1.18819288,627.14,626.76,1.547]
[1771711993332,1.18819288,627.07,626.76,1.547]
[1771711994238,1.18819288,627.08,626.76,1.547]
[1771711995238,1.18819288,627.1,626.76,1.547]
[1771711996236,1.18819288,627.11,626.76,1.547]
[1771711996640,1.18819288,627.11,626.19,0.27763595]
[1771711997337,1.18819288,627.12,626.19,0.27763595]
[1771711998435,1.18819288,627.08,626.19,0.27763595]
[1771711998740,1.18819288,627.01,626.04,0.27774009]
[1771711999236,1.18535618,627.02,626.04,0.27774009]
[1771712000238,1.18535618,627.03,626.04,0.27774009]
[1771712001137,1.18535618,627.03,626.05,1.38]
[1771712001343,1.18535618,627.04,626.05,1.38]
[1771712002237,1.18535618,627.05,626.05,1.38]
[1771712003241,1.18535618,626.99,626.05,1.38]
[1771712005244,1.18535618,627.0,626.05,1.38]
[1771712005742,1.18535618,627.01,626.05,1.38]
[1771712006041,1.18535618,627.0,626.05,1.38]
[1771712006841,1.18535618,626.98,626.05,1.38]
[1771712007341,1.18535618,626.99,626.05,1.38]
[1771712007742,1.18535618,627.04,626.05,1.38]
[1771712007941,1.18535618,627.07,626.05,1.38]
[1771712009345,1.18535618,627.05,626.05,1.38]
[1771712013249,1.18535618,627.03,626.05,1.38]
[1771712014349,1.18535618,627.02,626.05,1.38]
[1771712016252,1.18535618,627.01,626.05,1.38]
[1771712017148,1.5898788,627.12,626.05,1.38]
[1771712017349,1.1837444,627.0,626.05,1.38]
[1771712018252,1.1837444,626.99,626.05,1.38]
[1771712018450,1.1837444,626.91,626.05,1.38]
[1771712019350,1.1837444,626.9,626.05,1.38]
[1771712020153,1.1837444,626.89,626.05,1.38]
[1771712021254,1.1837444,626.88,626.05,1.38]
[1771712022258,1.1837444,626.86,626.05,1.38]
[1771712023353,1.1837444,626.84,626.05,1.38]
[1771712023953,1.1837444,626.83,626.05,1.38]
[1771712024257,1.1837444,626.81,626.05,1.38]
[1771712025559,1.1837444,626.83,626.05,1.38]
[1771712026059,1.1837444,626.8,626.05,1.38]
[1771712027156,1.1837444,626.79,626.05,1.38]
[1771712028161,1.1837444,626.78,626.05,1.38]
[1771712029258,1.1837444,626.77,626.05,1.38]
[1771712030361,1.1837444,626.76,626.05,1.38]
[1771712031155,1.1837444,626.75,626.05,1.38]
[1771712032261,1.1837444,626.74,626.05,1.38]
[1771712033161,1.1837444,626.73,626.05,1.38]
[1771712033359,1.1837444,626.74,626.05,1.38]
[1771712035260,1.1837444,626.73,626.05,1.38]
[1771712037263,1.1837444,626.72,626.05,1.38]
[1771712041266,1.1837444,626.71,626.05,1.38]
[1771712044271,1.1837444,626.71,626.04,0.27774009]
[1771712045973,1.1837444,626.72,626.04,0.27774009]
[1771712046173,1.1837444,626.77,626.05,1.5765259]
[1771712047273,1.1837444,626.77,626.06,1.334]
[1771712049274,1.1837444,626.78,626.06,2.9105259]
[1771712050375,1.1837444,626.79,626.07,1.5765259]
[1771712050578,1.1837444,626.86,626.13,1.5765259]
[1771712051878,1.1837444,626.91,626.18,1.5765259]
[1771712052278,1.1837444,626.91,626.17,1.5765259]
[1771712052579,1.1837444,626.96,626.21,1.5765259]
[1771712053378,1.1837444,626.96,626.06,1.334]
[1771712053379,1.1837444,626.97,626.2,1.5765259]
[1771712053581,0.27753299,627.35,626.06,1.334]
[1771712053582,1.1837444,626.99,626.22,1.5765259]
[1771712054282,1.1837444,627.0,626.21,1.5765259]
[1771712055181,0.27753299,627.35,626.2,1.5765259]
[1771712055182,1.1837444,627.01,626.2,1.5765259]
[1771712056382,1.1837444,627.01,626.19,1.5765259]
[1771712057285,1.1837444,627.02,626.18,1.5765259]
[1771712058286,1.1837444,627.03,626.18,1.5765259]
[1771712059189,1.1837444,627.03,626.17,1.5765259]
[1771712060183,1.1837444,627.04,626.17,1.5765259]
[1771712061387,1.1837444,627.04,626.16,1.5765259]
[1771712062292,1.1837444,627.05,626.16,1.5765259]
[1771712063289,1.1837444,627.05,626.15,1.5765259]
[1771712063494,0.27753299,627.35,626.17,1.5765259]
[1771712063495,1.1837444,627.07,626.17,1.5765259]
[1771712064290,1.1837444,627.08,626.17,1.5765259]
[1771712067295,1.1837444,627.08,626.16,1.5765259]
[1771712070795,1.1837444,627.09,626.17,1.5765259]
[1771712071896,1.1837444,627.12,626.19,1.5765259]
[1771712076202,1.1837444,627.11,626.19,1.5765259]
[1771712080204,1.1837444,627.11,626.08,2.3743218]
[1771712080205,1.1837444,627.11,626.2,1.5765259]
[1771712081207,1.1837444,627.1,626.2,1.5765259]
[1771712083303,1.1837444,627.1,626.21,1.5765259]
[1771712084306,1.1837444,627.09,626.21,1.5765259]
[1771712086007,1.1837444,627.09,626.22,1.5765259]
[1771712086409,1.1837444,627.08,626.22,1.5765259]
[1771712087406,1.1837444,627.08,626.23,1.5765259]
[1771712088306,1.1837444,627.07,626.23,1.5765259]
[1771712089208,1.1837444,627.06,626.24,1.5765259]
[1771712090214,1.1837444,627.05,626.24,1.5765259]
[1771712090413,1.1837444,627.05,626.25,1.5765259]
[1771712091315,1.1837444,627.05,626.26,1.5765259]
[1771712092318,1.1837444,627.04,626.27,1.5765259]
[1771712093319,1.1837444,627.03,626.28,1.5765259]
[1771712094220,1.1837444,627.02,626.29,1.5765259]
[1771712095318,1.1837444,627.01,626.31,1.5765259]
[1771712096321,1.1837444,627.0,626.32,1.5765259]
[1771712097423,1.1837444,626.99,626.32,1.5765259]
[1771712098422,1.1837444,626.99,626.33,1.5765259]
[1771712098722,1.1837444,627.05,626.38,1.5765259]
[1771712099324,1.1837444,627.06,626.38,1.5765259]
[1771712099826,1.1837444,627.09,626.42,1.5765259]
[1771712100723,1.1837444,627.05,626.37,1.5765259]
[1771712101328,1.1837444,627.05,626.38,1.548]
[1771712102032,1.1837444,627.04,626.38,1.548]
[1771712104433,1.1837444,627.02,626.38,1.548]
[1771712105133,1.1837444,627.03,626.38,1.548]
[1771712105333,1.1837444,627.02,626.38,1.548]
[1771712107634,1.1837444,627.03,626.38,1.548]
[1771712110137,1.1837444,627.04,626.38,1.548]
[1771712110341,1.1837444,627.11,626.42,1.5765259]
[1771712111738,0.27753299,627.35,626.45,1.5765259]
[1771712111739,1.1837444,627.15,626.45,1.5765259]
[1771712112241,1.1837444,627.16,626.45,1.5765259]
[1771712113440,1.1837444,627.16,626.44,1.5765259]
[1771712113639,1.1837444,627.15,626.43,1.5765259]
[1771712114240,1.1837444,627.16,626.42,1.5765259]
[1771712117242,1.1837444,627.16,626.41,1.5765259]
[1771712118246,1.1837444,627.17,626.41,1.5765259]
[1771712122245,1.1837444,627.17,626.4,1.5765259]
[1771712123150,1.1837444,627.18,626.4,1.5765259]